Cogmind - Beta 11.1 @@@ ROGUE MODE // 2022.06.22 @ 17:50:06 Player: ktur Result: Destroyed self with Grenade Launcher Performance ------------- Evolutions (0) 0 Regions Visited (4) 800 Robots Destroyed (33) 165 Value Destroyed (801) 801 Prototype IDs (28) 560 Alien Tech Used (0) 0 Bonus (307) 307 TOTAL SCORE: 2633 Bonus ------- Follower Combat Kills 7 Aligned with FarCom 300 Cogmind --------- Core Integrity 0/250 Matter 260/300 Energy 160/160 System Corruption 0% Temperature Cool (0) Movement Rolling (120) Ox2 Location -9/Mines Parts ------- > --- POWER (1) -------- Light Nuclear Core > --- PROPULSION (2) --- Wheel Compact Wheel > --- UTILITY (2) ------ High-capacity Storage Unit Medium Armor Plating > --- WEAPON (2) ------- Light Assault Rifle Grenade Launcher > --- INVENTORY (20) --- Light Nuclear Core Light Treads Heat Sink Huge Storage Unit Transport Network Coupler Trap Extractor (0/4) Trap Extractor (0/4) Medium Laser Light EM Pulse Cannon Light EM Pulse Cannon Light EM Pulse Cannon Light EM Pulse Cannon Guided Plasma Cannon Firepult YOLO Cannon Grenade Launcher Grenade Launcher Mace Peak State ------------ > --- POWER ------------ Light Nuclear Core > --- PROPULSION ------- Wheel Compact Wheel > --- UTILITY ---------- High-capacity Storage Unit Medium Armor Plating > --- WEAPON ----------- Medium Laser Light Assault Rifle > --- INVENTORY -------- Light Nuclear Core Light Treads Heat Sink Huge Storage Unit Transport Network Coupler Trap Extractor Trap Extractor Light EM Pulse Cannon Light EM Pulse Cannon Light EM Pulse Cannon Light EM Pulse Cannon Guided Plasma Cannon Firepult YOLO Cannon Grenade Launcher Grenade Launcher Mace [Rating: 17] Favorites ----------- Power Ion Engine Engine Ion Engine Power Core Light Nuclear Core Propulsion Light Treads Treads Light Treads Wheel Wheel Utility Medium Armor Plating Storage High-capacity Storage Unit Protection Medium Armor Plating Weapon Light Assault Rifle Energy Gun Medium Laser Ballistic Gun Light Assault Rifle Launcher Grenade Launcher Build | -11 -10 -10 -10 -9 ------- Run | Scr Mat Min Exi Min Slots Evolved . | . . . . . Power . | . . . . . Propulsion . | . . . . . Utility . | . . . . . Weapon . | . . . . . Parts Attached 27 | 6 10 9 . 2 Power 4 | 1 1 2 . . Engine 3 | 1 1 1 . . Core 1 | . . 1 . . Reactor . | . . . . . Propulsion 7 | 2 2 3 . . Treads 5 | 2 2 1 . . Leg . | . . . . . Wheel 2 | . . 2 . . Hover . | . . . . . Flight . | . . . . . Utility 8 | 1 5 2 . . Device . | . . . . . Storage 4 | 1 3 . . . Processor . | . . . . . Hackware . | . . . . . Protection 4 | . 2 2 . . Artifact . | . . . . . Weapon 8 | 2 2 2 . 2 Energy Gun 3 | 1 1 . . 1 Energy Cannon . | . . . . . Ballistic Gun 3 | 1 1 1 . . Ballistic Cannon . | . . . . . Launcher 2 | . . 1 . 1 Special Weapon . | . . . . . Impact Weapon . | . . . . . Slashing Weapon . | . . . . . Piercing Weapon . | . . . . . Special Melee Weapon . | . . . . . Unidentified Prototypes . | . . . . . Parts Lost 9 | . 1 8 . . Power 2 | . . 2 . . Propulsion 2 | . . 2 . . Utility 3 | . 1 2 . . Weapon 2 | . . 2 . . Highest Loss Streak 5 | . 1 5 . . To Critical Strikes . | . . . . . Average Slot Usage (%) 97 | . 99 97 85 100 Engine 11 | . 14 12 . . Core 2 | . . 1 14 14 Treads 23 | . 28 25 . . Wheel 4 | . . 2 28 28 Storage 14 | . 14 14 14 14 Protection 13 | . 13 13 14 14 Energy Gun 12 | . 14 12 . 13 Ballistic Gun 13 | . 14 13 14 14 Naked Turns . | . . . . . Heaviest Build 56 | 12 55 55 53 56 Greatest Support 40 | 40 40 40 26 26 Greatest Overweight (x) 5 | . 1 5 2 2 Average Overweight (x) . | . . 1 2 2 Largest Inventory Capacity 20 | 8 20 20 20 20 Average Capacity 17 | 7 15 20 20 20 Most Carried 20 | 6 20 20 20 20 Average Carried 16 | 3 15 19 18 19 Final Capacity 20 | 8 20 20 20 20 Final Carried 20 | 6 20 17 20 20 Class Distribution -------------------- 100% | Mutant Dominant Class ---------------- Mutant | -10/Materials Mutant | -10/Mines Mutant | -10/Exiles Mutant | -9/Mines Resources | -11 -10 -10 -10 -9 ----------- Run | Scr Mat Min Exi Min Matter Collected 604 | 221 193 180 . 10 Remotely . | . . . . . Salvage Created 1049 | . 593 431 . 25 Parts 54 | . 35 17 . 2 Haulers Intercepted 2 | . 2 . . . Recyclers Shooed 2 | . 2 . . . Parts Field Recycled . | . . . . . Retrieved Matter . | . . . . . Parts Self-Destructed . | . . . . . Prevented . | . . . . . Kills | -11 -10 -10 -10 -9 ------- Run | Scr Mat Min Exi Min Combat Hostiles Destroyed 26 | . 13 10 . 3 Guns 22 | . 13 9 . . AOE 4 | . . 1 . 3 Classes Destroyed 7 | . 4 2 . 1 Worker 1 | . . . . 1 Hauler 2 | . 2 . . . Recycler 2 | . . 2 . . Operator 2 | . 2 . . . Swarmer 9 | . 3 3 . 3 Grunt 16 | . 10 6 . . Demolisher 1 | . . 1 . . Best Kill Streak 4 | . 3 3 . 4 Combat Bots Only 3 | . 3 3 . 3 Max Kills in Single Turn 2 | . 1 1 . 2 Gunslinging . | . . . . . Exploded 2 | . . 1 . 2 Melee . | . . . . . Uniques/NPCs Destroyed . | . . . . . Combat | -11 -10 -10 -10 -9 -------- Run | Scr Mat Min Exi Min Damage Taken 1563 | . 643 826 . 94 Core 256 | . 102 138 . 16 Absorbed by Shields . | . . . . . Regen/Repaired (Parts) 104 | . 104 . . . Core Remaining (%) 100 | 100 . . . . Volleys Fired 113 | . 65 45 . 3 Largest 2 | . 2 2 . 1 Hottest 70 | . 70 70 . 30 Shots Fired 208 | . 130 75 . 3 Gun 203 | . 130 73 . . Cannon . | . . . . . Launcher 5 | . . 2 . 3 Special . | . . . . . Kinetic 106 | . 65 41 . . Thermal 97 | . 65 32 . . Explosive 5 | . . 2 . 3 Electromagnetic . | . . . . . Robot Hit Streak 22 | . 22 10 . 11 Robot Miss Streak 4 | . 4 2 . 1 Penetration Max . | . . . . . Secondary Targets 4 | . 2 2 . . Max Gunslinging Chain 1 | . 1 1 . . Shots Hit Robots 146 | . 88 57 . 1 Core Hits 72 | . 38 27 . 7 Critical Kills . | . . . . . Critical Parts Destroyed 1 | . 1 . . . Critical Strikes 6 | . 4 2 . . Burn 5 | . 3 2 . . Destroy 1 | . 1 . . . Melee Attacks . | . . . . . Impact . | . . . . . Slashing . | . . . . . Piercing . | . . . . . Sneak Attacks . | . . . . . Combat Hostiles . | . . . . . Follow-up Attacks . | . . . . . Damage Inflicted 1802 | 9 949 603 . 241 Guns 1503 | . 949 554 . . Cannons . | . . . . . Explosions 280 | . . 39 . 241 Melee . | . . . . . Ramming 19 | 9 . 10 . . Kinetic 595 | . 350 245 . . Thermal 908 | . 599 309 . . Explosive 280 | . . 39 . 241 Electromagnetic . | . . . . . Impact . | . . . . . Slashing . | . . . . . Piercing . | . . . . . Highest Corruption . | . . . . . Average Corruption . | . . . . . Corruption Purged . | . . . . . Corruption Blocked . | . . . . . Overload Shots . | . . . . . Overflow Damage 4 | . . . . 4 Projectiles . | . . . . . Explosions 4 | . . . . 4 Melee . | . . . . . Knockbacks . | . . . . . Impact . | . . . . . Kinetic . | . . . . . Secondary . | . . . . . Self-Inflicted Damage 52 | . . . . 52 Shots 2 | . . . . 2 Rammed 4 | 2 . 2 . . Targets Rammed 5 | 2 . 3 . . Kicked . | . . . . . Crushed 1 | . . 1 . . Highest Temperature 338 | . 338 306 . . Average Temperature 101 | . 103 97 . . Received Heat Transfer 546 | . 312 234 . . Effects 1 | . . 1 . . Matter Decay 1 | . . 1 . . Siege Activations . | . . . . . Robots Corrupted . | . . . . . Combat Hostiles . | . . . . . Parts Fried . | . . . . . Impact Corruptions . | . . . . . Robots Melted . | . . . . . Combat Hostiles . | . . . . . Parts Melted 3 | . 3 . . . Heat Transferred 2988 | . 1915 1073 . . Parts Sabotaged . | . . . . . Parts Stolen . | . . . . . Parts Stripped . | . . . . . Power Chain Reactions . | . . . . . Missiles Intercepted . | . . . . . Alert | -11 -10 -10 -10 -9 ------- Run | Scr Mat Min Exi Min Peak Influence 204 | . 204 150 . 125 Initial . | . . . . . Average 40 | . 48 36 . 1 Maximum Alert Level 1 | . 1 . . . Low Security (%) 98 | 100 98 100 . 100 Level 1 1 | . 1 . . . Level 2 . | . . . . . Level 3 . | . . . . . Level 4 . | . . . . . Level 5 . | . . . . . High Security . | . . . . . Max Security . | . . . . . Squads Dispatched 4 | . 4 . . . Investigation 2 | . 2 . . . Extermination . | . . . . . Reinforcement 2 | . 2 . . . Assault . | . . . . . Garrison . | . . . . . Intercept . | . . . . . Searches Triggered . | . . . . . Construction Impeded . | . . . . . Haulers Reinforced . | . . . . . Active Scanning Responses . | . . . . . Cargo Convoy Interrupts . | . . . . . Stealth | -11 -10 -10 -10 -9 --------- Run | Scr Mat Min Exi Min Distress Signals 1 | . 1 . . . Communications Jammed . | . . . . . Distress Signals . | . . . . . Times Spotted 45 | . 31 10 . 4 Peak Tracking Total 4 | . 4 3 . 4 Tactical Retreats . | . . . . . Traps | -11 -10 -10 -10 -9 ------- Run | Scr Mat Min Exi Min Traps Triggered . | . . . . . Indirectly . | . . . . . Trap Hack Attempts . | . . . . . Triggered . | . . . . . Disarmed . | . . . . . Reprogrammed 6 | . 6 . . . Reused 1 | . 1 . . . Traps Extracted . | . . . . . Installed . | . . . . . Triggered 1 | . 1 . . . Machines | -11 -10 -10 -10 -9 ---------- Run | Scr Mat Min Exi Min Machines Disabled . | . . . . . Max in Single Turn . | . . . . . Machines Sabotaged . | . . . . . Garrisons Compromised . | . . . . . Overloaded Fab Kills . | . . . . . Hacking | -11 -10 -10 -10 -9 --------- Run | Scr Mat Min Exi Min Machines Accessed 11 | . 9 . 2 . Terminals 6 | . 6 . . . Fabricators . | . . . . . Repair Stations 1 | . 1 . . . Recycling Units 2 | . 2 . . . Scanalyzers . | . . . . . Garrison Access . | . . . . . Total Hacks 28 | . 26 . 2 . Successful 13 | . 11 . 2 . Failed 15 | . 15 . . . Catastrophic 2 | . 2 . . . Database Lockouts . | . . . . . Manual 17 | . 16 . 1 . Terminals 22 | . 22 . . . Fabricators . | . . . . . Repair Stations 2 | . 2 . . . Recycling Units 2 | . 2 . . . Scanalyzers . | . . . . . Garrison Access . | . . . . . Terminal Hacks 7 | . 5 . 2 . Record 1 | . . . 1 . Prototype ID Bank 2 | . 2 . . . Branch Access Points 1 | . 1 . . . Locate Traps 1 | . 1 . . . Reprogram Traps 1 | . 1 . . . EX-Prototype ID Bank 1 | . . . 1 . Fabricator Hacks . | . . . . . Repair Station Hacks 2 | . 2 . . . Scan Component 1 | . 1 . . . Repair 1 | . 1 . . . Recycling Unit Hacks . | . . . . . Scanalyzer . | . . . . . Garrison Access Hacks . | . . . . . Unauthorized Hacks 4 | . 4 . . . Terminals 2 | . 2 . . . Botnet 1 | . 1 . . . Operators 1 | . 1 . . . Fabricators . | . . . . . Repair Stations . | . . . . . Recycling Units 2 | . 2 . . . Tunnel 2 | . 2 . . . Scanalyzers . | . . . . . Garrison Access . | . . . . . Data Cores Recovered . | . . . . . Used . | . . . . . Hacking Detections 7 | . 7 . . . Full Trace Events . | . . . . . Feedback Events . | . . . . . Feedback Blocked . | . . . . . Robot Schematics Acquired . | . . . . . Robots Built . | . . . . . Authchips . | . . . . . Time . | . . . . . Total Robot Build Rating . | . . . . . Part Schematics Acquired . | . . . . . Parts Built . | . . . . . Authchips . | . . . . . Time . | . . . . . Total Part Build Rating . | . . . . . Parts Repaired 1 | . 1 . . . Time 26 | . 26 . . . Parts Recycled . | . . . . . Recycled Matter . | . . . . . Retrieved Matter . | . . . . . Retrieved Components . | . . . . . Parts Scanalyzed . | . . . . . Part Schematics Acquired . | . . . . . Parts Damaged . | . . . . . Bothacking | -11 -10 -10 -10 -9 ------------ Run | Scr Mat Min Exi Min Used RIF Installer . | . . . . . Robots Hacked . | . . . . . Non-combat . | . . . . . Combat . | . . . . . Robot Hacks Applied . | . . . . . Relay Couplers Released . | . . . . . Fabnet Peak Effective % . | . . . . . Robots Rewired . | . . . . . Allies Hacked . | . . . . . Hacks Repelled . | . . . . . Allies | -11 -10 -10 -10 -9 -------- Run | Scr Mat Min Exi Min Total Allies 2 | . . . . 2 Largest Group 2 | . . . . 2 Highest-Rated Group 53 | . . . . 53 Highest-Rated Ally 31 | . . . . 31 Total Orders . | . . . . . Ally Attacks 3 | . . . . 3 Total Damage 34 | . . . . 34 Kills 1 | . . . . 1 Allies Corrupted . | . . . . . Allies Melted . | . . . . . Intel | -11 -10 -10 -10 -9 ------- Run | Scr Mat Min Exi Min Robot Analysis Total . | . . . . . Derelict Logs Recovered 1 | . . . . 1 Drone Launches . | . . . . . Drone Recoveries . | . . . . . Exploration | -11 -10 -10 -10 -9 ------------- Run | Scr Mat Min Exi Min Turns Passed 4193 | 79 2183 1375 312 244 Spaces Moved 1947 | 41 941 567 257 141 Core 4 | 4 . . . . Treads 1441 | 37 941 463 . . Legs . | . . . . . Wheels 502 | . . 104 257 141 Hover . | . . . . . Flight . | . . . . . Fastest Speed 50 | 50 160 120 120 120 Average Speed 187 | 149 200 218 120 120 Slowest Speed 240 | 160 240 240 120 120 Overloaded Moves . | . . . . . Propulsion Burnouts . | . . . . . Robots Hopped . | . . . . . Cave-ins Triggered . | . . . . . Exploration Rate (%) 53 | 4 99 80 61 24 Regions Visited 4 Branch Regions 3 Pre-discovered Areas 5 | . 2 1 1 1 Known Exits Taken 1 | . 1 . . . Unknown Exits Taken 3 | 1 . 1 1 . Scrap Searched 1 | . . . . 1 Spaces Dug 8 | . . . . 8 Terrain Destroyed 40 | . . 17 . 23 Melee . | . . . . . Projectile . | . . . . . AOE 40 | . . 17 . 23 Terrain Rammed . | . . . . . Walls Destroyed . | . . . . . Machines Disabled . | . . . . . Actions | -11 -10 -10 -10 -9 --------- Run | Scr Mat Min Exi Min Total 2298 | 56 1133 634 261 214 Wait 146 | . 72 7 . 67 Move 1943 | 40 940 566 256 141 Hop . | . . . . . Pick Up 43 | 8 29 2 3 1 Fast Attach 8 | 4 2 2 . . Attach 14 | 2 4 7 . 1 Detach 2 | . . 2 . . Swap 5 | . 4 . . 1 Drop 19 | . 17 . 2 . Fire 113 | . 65 45 . 3 Melee . | . . . . . Ram . | . . . . . Kick . | . . . . . Crush 5 | 2 . 3 . . Escape Stasis . | . . . . . Rewire . | . . . . . Trap . | . . . . . Miscellaneous . | . . . . . Route ------- -11/Scrapyard -10/Materials (discovered 5 exits: [*Mat x3] / *Min x2) -10/Mines (discovered 3 exits: [*Mat x2] / *Exi) -10/Exiles -9/Mines History --------- Turn | Location | Event 16 | -11/Scrapyard | Discovered new exit (range 15) 80 | -11/Scrapyard | Entered Materials 258 | -10/Materials | Discovered new exit (range 3) 340 | -10/Materials | Build established: Mutant 499 | -10/Materials | Discovered new exit (range 6) 753 | -10/Materials | Discovered new exit (range 12) 900 | -10/Materials | Discovered new exit (range 13) 1062 | -10/Materials | Identified exit to Mines 1449 | -10/Materials | Discovered new exit (range 10) 1994 | -10/Materials | Repaired Lgt. Treads 2263 | -10/Materials | Entered Mines 2402 | -10/Mines | Core integrity fell below 50% 2417 | -10/Mines | Discovered new exit (range 11) 2543 | -10/Mines | Learned location of Storage (-9) 2968 | -10/Mines | Deemed a non-threat by the Exiles lab entrance 2968 | -10/Mines | Discovered new exit (range 5) 3119 | -10/Mines | Discovered new exit (range 5) 3310 | -10/Mines | Assembled infested the area 3315 | -10/Mines | Assisted by a Guerilla fighting off Assembled 3466 | -10/Mines | Core integrity fell below 20% 3513 | -10/Mines | Lost 5 parts (1p1n1u2w) 3638 | -10/Mines | Entered Exiles 3668 | -10/Exiles | Met 8R-AWN 3689 | -10/Exiles | Met EX-HEX 3734 | -10/Exiles | Met EX-DEC 3746 | -10/Exiles | Learned location of Zion (-6) 3769 | -10/Exiles | Met EX-BIN 3787 | -10/Exiles | Aligned with FarCom system 3788 | -10/Exiles | Given EX-Vault access code 3817 | -10/Exiles | Opened EX-Vault 3823 | -10/Exiles | Found Firepult 3827 | -10/Exiles | Found Gui. Plasma Cannon 3831 | -10/Exiles | Found YOLO Cannon 3856 | -10/Exiles | Warned to stay clear of 0b10 Research branches 3934 | -10/Exiles | Discovered new exit (range 15) 3950 | -10/Exiles | Stole three prototypes: Firepult, Gui. Plasma Cannon, YOLO Cannon 3950 | -10/Exiles | Entered Mines 4194 | -9/Mines | Destroyed self with Grenade Launcher Last Messages --------------- sneak in here and steal a few of HEX's prototypes. 03934_ EXIT=FOUND LOCATION=UNKNOWN GOAL=ESCAPE 03950_ Receiving FarCom transmissions... 03951_ A pair of derelicts emerge from the shadows: "We're, um, lost. You wouldn't happen to know the way out of here, would you?" 03969_ K-01 Serf collects debris. 03973_ Acquired derelict log, extracted data. World map confirmed: -6/Zion. 03983_ Searching scrap... 03983_ Found Grenade Launcher. 03983_ Found 14 Matter. 03984_ Acquired 10 matter. 03990_ Acquired Grenade Launcher. 04021_ T-07 Excavator is excavating. 04170_ K-01 Serf collects debris. 04190_ S-10 Pest destroyed. 04194_ Destroyed Lgt. Ion Engine. 04194_ K-01 Serf destroyed. Map ----- +----------------------------------------------------+ | ?????????????????????????????????????????????????? | | ?????????????????????????????????????????????????? | | ?????????????????????????????????????????????????? | | ?????????????????????????????????????????????????? | | ?????????????????????????????????????????????????? | | ?????????????????????????????????????????????????? | | ?????????????????????????????????????????????????? | | ?????????????????????????????????????????????????? | | ?????????????????????????????????????????????????? | | ?????????????????????????????????????????????????? | | ?????????????????????????????????????????????????? | | ?????????????????????????????????????????????????? | | ?????????????????????????????????????????????????? | | ?????????????????????????????????????????????????? | | ?????????????????????????????????????????????????? | | ###??????????????????????????????????????????????? | | #??????????????????????????????????????????????? | | # #??????????????????????????????????????????????? | | # ###?????????????????#??????????????????????????? | | #?????????????????# ?????????????????????????? | | #?????????????????# ?????????????????????????? | | #?????????????????# ####?????????????????????? | | """ #?????????????????? #?????????????????????? | | """ #??????????????????? ##????????????????????? | | """ #???????????????????# ####?????????#???????? | | #???????????????????#@% #??### ##??????? | | #????????############ ???? | | ## ##??????### s%%= ???? | | ?# #?####### ######### ## ???? | | ?# #?# #???????### #?????????????? | | ?# #?# ##??????????# ### #?????????????? | | ?# ### #### ##???????????? ????????????????? | | ?# #??# #??????????????r####???????????????? | | ?##### #??# ????????????? #??????????????????? | | ?????# #??# ####????????????? ??????????????????? | | ?????# #??####???????????????? ??????????????????? | | ?????# #??????????????????????? ?????????????????? | | ?????# #??????????????????????? ?????????????????? | | ?????#%#???????????????????????? ????????????????? | | ?????# #?????????????????????????????????????????? | | ?????#%#?????????????????????????????????????????? | | ?????# #?????????????????????????????????????????? | | ?????#%#?????????????????????????????????????????? | | ????? % ?????????????????????????????????????????? | | ????? ?????????????????????????????????????????? | | ????? ?????????????????????????????????????????? | | ????? #?????????????????????????????????????????? | | ????? #??????????????????????????????????????????? | | ????? ???????????????????????????????????????????? | | ????? ???????????????????????????????????????????? | +----------------------------------------------------+ Best States ------------- Heat Dissipation 25 Energy Generation 14 Energy Capacity 250 Matter Stores 300 Matter Capacity 300 Sight Range 16 Terrain Scan Density 10 Armor Coverage 225 Evasion (%) 40 Recoil Reduction 2 Item Schematics ----------------- None Robot Schematics ------------------ None Fabricated ------------ Nothing Alien Tech Used ----------------- None Achievements -------------- None Challenges ------------ None Game ------ Seed RefineryTiamatShotgun Manual? 0 Play Time 00:16:31 Cumulative 485.3 hours Start 2022.06.22 @ 17:33:44 End 2022.06.22 @ 17:50:06 Sessions 1 Manual Loads 0 Difficulty Rogue Special Mode None Game No. 458 Rogue 458 Adventurer 0 Explorer 0 Win Type - Total 22 Types 13/2/4/2/0/0/0/1/0 Lore% 94 Gallery% 93 Achievement% 78 Wizard Run 0 Options --------- ASCII 0 Keyboard 0 Movement Arrows Keybinds 0 Fullscreen 1 Font 18/Smallcaps Map View 76x50 Tactical HUD 1 Map Filters NONE Filters NONE Steam 1 RUN: 72264e96-3b6c-4a23-b348-1e9386f46299